bitfinex-derivatives/quotes_BTCF0:USTF0_20251128
["timestamp","ask_amount","ask_price","bid_price","bid_amount"]
[1764296326560,9.533e-05,90793.0,90792.0,0.47109619]
[1764296326948,9.533e-05,90793.0,90792.0,0.47209619]
[1764296327343,0.00016515,90802.0,90792.0,0.47209619]
[1764296327548,0.00016515,90802.0,90801.0,0.053466]
[1764296328859,0.00316515,90802.0,90801.0,0.053466]
[1764296330852,0.0388135,90822.0,90821.0,0.04245]
[1764296330853,0.0826735,90822.0,90821.0,0.04245]
[1764296331054,0.42386,90822.0,90821.0,0.04245]
[1764296331257,0.38,90822.0,90821.0,0.04245]
[1764296331561,0.40106,90822.0,90821.0,0.04245]
[1764296331868,0.42386,90822.0,90821.0,0.04245]
[1764296332053,0.43086,90822.0,90821.0,0.04245]
[1764296332253,0.387,90822.0,90821.0,0.04245]
[1764296332562,0.40806,90822.0,90821.0,0.04245]
[1764296332764,0.40906,90822.0,90821.0,0.04245]
[1764296333354,0.40806,90822.0,90821.0,0.04245]
[1764296333859,0.40406,90822.0,90821.0,0.04245]
[1764296334061,0.42686,90822.0,90821.0,0.04245]
[1764296335963,0.40406,90822.0,90821.0,0.04245]
[1764296336175,0.003,90822.0,90821.0,0.04245]
[1764296339766,0.04686,90822.0,90821.0,0.04245]
[1764296339966,0.04686,90822.0,90821.0,0.05827661]
[1764296341165,0.00999999,90880.0,90864.0,0.01324]
[1764296341374,0.04559,90865.0,90864.0,0.05614]
[1764296341663,0.04559,90865.0,90864.0,0.0429]
[1764296341865,0.2,90865.0,90856.0,0.0671493]
[1764296342067,0.24559,90865.0,90864.0,0.05629]
[1764296342263,0.45559,90865.0,90864.0,0.05629]
[1764296342568,0.45559,90865.0,90864.0,0.02172]
[1764296343369,0.16759,90865.0,90864.0,0.0672984]
[1764296343567,0.16759,90865.0,90864.0,0.05629]
[1764296344264,0.16559,90865.0,90864.0,0.05629]
[1764296344460,0.002,90865.0,90864.0,0.05629]
[1764296345268,0.00016515,90874.0,90873.0,0.0672973]
[1764296345468,0.00016515,90874.0,90873.0,0.05629]
[1764296345653,0.04575515,90874.0,90873.0,0.05629]
[1764296345853,0.04575515,90874.0,90873.0,0.02172]
[1764296346058,0.04575515,90874.0,90867.0,0.0110079]
[1764296346059,0.04559,90868.0,90867.0,0.0429]
[1764296346665,0.01417235,90874.0,90861.0,0.02172]
[1764296346666,0.04559,90862.0,90861.0,0.02172]
[1764296347262,0.04559,90862.0,90861.0,0.0539087]
[1764296351069,0.46559,90862.0,90861.0,0.0539087]
[1764296353067,0.46559,90862.0,90861.0,0.0429]
[1764296354166,0.22559,90862.0,90861.0,0.0429]
[1764296355171,0.0333385,90864.0,90863.0,0.04529]
[1764296355376,0.3558685,90864.0,90863.0,0.04529]
[1764296356175,0.04486,90864.0,90863.0,0.04529]
[1764296356379,0.36486,90864.0,90863.0,0.04529]
[1764296357371,0.36486,90864.0,90863.0,0.0562985]
[1764296357770,0.36486,90864.0,90863.0,0.0110085]
[1764296358580,0.36486,90864.0,90856.0,0.07392275]
[1764296358581,0.04486,90857.0,90856.0,0.07392275]
[1764296358875,0.46486,90857.0,90856.0,0.01539275]
[1764296359081,0.46486,90857.0,90849.0,0.0110102]
[1764296359082,0.0558693,90856.0,90849.0,0.0110102]
[1764296359272,0.4758693,90856.0,90851.0,0.0110099]
[1764296360384,0.4758693,90856.0,90855.0,0.00216515]
[1764296360681,0.4758693,90856.0,90855.0,0.02521515]
[1764296360877,0.4758693,90856.0,90855.0,0.04745515]
[1764296361084,0.07486,90856.0,90855.0,0.04745515]
[1764296362080,0.02253,90856.0,90855.0,0.06413734]
[1764296362277,0.04486,90865.0,90864.0,0.05875]
[1764296362577,0.27486,90865.0,90864.0,0.05875]
[1764296363572,0.04486,90860.0,90859.0,0.04529]
[1764296363768,0.43486,90860.0,90859.0,0.04529]
[1764296365082,0.43486,90860.0,90859.0,0.056299]
[1764296365282,0.14486,90860.0,90859.0,0.056299]
[1764296365583,0.14486,90860.0,90859.0,0.057299]
[1764296365788,0.49486,90860.0,90859.0,0.057299]
[1764296366781,0.07233,90860.0,90859.0,0.057299]
[1764296366982,0.09486,90860.0,90859.0,0.057299]
[1764296367184,0.34486,90860.0,90859.0,0.057299]
[1764296367680,0.42486,90860.0,90859.0,0.057299]
[1764296368673,0.14486,90860.0,90859.0,0.057299]
[1764296369484,0.41486,90860.0,90859.0,0.04629]
[1764296369684,0.41486,90860.0,90859.0,0.001]
[1764296371482,0.41486,90860.0,90859.0,0.02405]
[1764296373388,0.44810685,90860.0,90859.0,0.001]
[1764296373578,0.0557893,90856.0,90855.0,0.01684734]
[1764296373776,0.5057893,90856.0,90855.0,0.01684734]
[1764296374576,0.53075214,90856.0,90855.0,0.01684734]
[1764296374978,0.5057893,90856.0,90855.0,0.01684734]
[1764296375283,0.5057893,90856.0,90855.0,0.01884734]
[1764296375581,0.53075365,90856.0,90855.0,0.01884734]
[1764296376887,0.96075365,90856.0,90855.0,0.01884734]
[1764296377988,0.61075365,90856.0,90855.0,0.01884734]
[1764296379982,0.53075365,90856.0,90855.0,0.01884734]
[1764296382891,0.95075365,90856.0,90855.0,0.01884734]
[1764296383988,0.58075365,90856.0,90855.0,0.01884734]
[1764296384495,0.85073545,90856.0,90855.0,0.01884734]
[1764296385887,0.53073545,90856.0,90855.0,0.01884734]
[1764296386492,0.90073545,90856.0,90855.0,0.01884734]
[1764296388795,0.90073545,90856.0,90855.0,0.06200734]
[1764296388995,0.90073545,90856.0,90855.0,0.01884734]
[1764296389290,0.055792,90834.0,90833.0,0.04316]
[1764296389494,0.639952,90834.0,90833.0,0.04316]
[1764296390283,0.639952,90834.0,90833.0,0.04416]
[1764296391083,0.639952,90834.0,90833.0,0.05016]
[1764296391695,0.639952,90834.0,90833.0,0.02807]
[1764296391891,0.639952,90834.0,90833.0,0.05016]
[1764296392281,0.639952,90834.0,90833.0,0.007]
[1764296392482,0.639952,90834.0,90833.0,0.006]
[1764296393286,0.639952,90834.0,90832.0,0.01652306]
[1764296393487,0.04478,90829.0,90828.0,0.05664]
[1764296393796,0.4857926,90829.0,90828.0,0.05664]
[1764296394295,0.04494515,90843.0,90842.0,0.04316]
[1764296394490,0.48494515,90843.0,90842.0,0.04316]
[1764296395787,0.49494515,90843.0,90842.0,0.04316]
[1764296396387,0.49694515,90843.0,90842.0,0.04316]
[1764296397386,0.29694515,90843.0,90842.0,0.04316]
[1764296397582,0.27412515,90843.0,90842.0,0.04316]
[1764296397998,0.29694515,90843.0,90842.0,0.04316]
[1764296402203,0.29694515,90843.0,90842.0,0.05971439]
[1764296402695,0.00216515,90843.0,90842.0,0.13878018]
[1764296402898,0.00216515,90843.0,90842.0,0.05971439]
[1764296404300,0.0211,90860.0,90859.0,0.04569]
[1764296404489,0.0110077,90870.0,90865.0,0.04569]
[1764296404694,0.4535377,90870.0,90869.0,0.04569]
[1764296404895,0.4535377,90870.0,90869.0,0.10508979]
[1764296405097,0.4535377,90870.0,90869.0,0.04569]
[1764296405302,0.4535377,90870.0,90869.0,0.10506264]
[1764296405802,0.053537,90876.0,90875.0,0.04569]
[1764296406002,0.15253,90876.0,90875.0,0.04569]
[1764296406203,0.00016506,90879.0,90878.0,0.04569]
[1764296406406,0.38016506,90879.0,90878.0,0.04569]
[1764296406601,0.40126506,90879.0,90878.0,0.04569]
[1764296406798,0.04126506,90879.0,90878.0,0.04569]
[1764296407110,0.32126506,90879.0,90878.0,0.04569]
[1764296407805,0.34269506,90879.0,90878.0,0.04569]
[1764296408695,0.34569506,90879.0,90878.0,0.04569]
[1764296409005,0.34669506,90879.0,90878.0,0.04569]
[1764296411197,0.32526506,90879.0,90878.0,0.04569]
[1764296411498,0.30416506,90879.0,90878.0,0.0566967]
[1764296411693,0.00416506,90879.0,90878.0,0.0566967]
[1764296411893,0.00416506,90879.0,90878.0,0.11606685]
[1764296412101,0.00416506,90879.0,90878.0,0.0566967]
[1764296412508,0.02526506,90879.0,90878.0,0.04569]
[1764296412702,0.02249,90877.0,90876.0,0.0591969]
[1764296412904,0.04454,90877.0,90876.0,0.1052769]
[1764296413508,0.04454,90877.0,90876.0,0.04608]
[1764296414699,0.04854,90877.0,90876.0,0.04608]
[1764296414899,0.04854,90877.0,90876.0,0.0570869]
[1764296415611,0.04854,90877.0,90876.0,0.04608]
[1764296416007,0.0555477,90870.0,90869.0,0.01651229]
[1764296416203,0.0555487,90861.0,90860.0,0.04624506]
[1764296417507,0.0141772,90874.0,90860.0,0.04624506]
[1764296417508,0.04454,90874.0,90873.0,0.04608]
[1764296417713,0.43454,90874.0,90873.0,0.04608]
[1764296418811,0.43654,90874.0,90873.0,0.04608]
[1764296422516,0.43654,90874.0,90873.0,0.06335451]
[1764296427205,0.43654,90874.0,90873.0,0.12255141]
[1764296428220,0.43654,90874.0,90873.0,0.06335451]
[1764296429122,0.43654,90874.0,90873.0,0.01727451]
[1764296429327,0.055548,90867.0,90866.0,0.12528521]
[1764296429617,0.505548,90867.0,90866.0,0.10533053]
[1764296429823,0.505548,90867.0,90866.0,0.04608]
[1764296430520,0.506548,90867.0,90866.0,0.0229]
[1764296430725,0.0555487,90861.0,90860.0,0.04624506]
[1764296431423,0.0555487,90861.0,90860.0,0.06332111]
[1764296432414,0.4555487,90861.0,90860.0,0.06332111]
[1764296433526,0.4555487,90861.0,90860.0,0.14252632]
[1764296433926,0.1555487,90861.0,90860.0,0.14252632]
[1764296434323,0.1555487,90861.0,90860.0,0.06332111]
[1764296435920,0.4355487,90861.0,90860.0,0.06332111]
[1764296436232,0.2855487,90861.0,90860.0,0.06332111]
[1764296439533,0.25205,90861.0,90860.0,0.06332111]
[1764296439842,0.05555166,90879.0,90878.0,0.0442]
[1764296440130,0.42555166,90879.0,90878.0,0.0442]
[1764296441026,0.42855166,90879.0,90878.0,0.0442]
[1764296441526,0.42955166,90879.0,90878.0,0.0442]
[1764296442940,0.47955166,90879.0,90878.0,0.0442]
[1764296446043,0.47955166,90879.0,90878.0,0.06173682]
[1764296446244,0.47955166,90879.0,90878.0,0.03890682]
[1764296446542,0.47955166,90879.0,90878.0,0.01753682]
[1764296446742,0.04438,90872.0,90871.0,0.0791469]
[1764296446941,0.04438,90872.0,90871.0,0.1233469]
[1764296447449,0.04438,90872.0,90871.0,0.0442]
[1764296448048,0.04438,90869.0,90868.0,0.12335818]
[1764296448340,0.0553879,90868.0,90865.0,0.07915818]
[1764296448544,0.0553879,90868.0,90861.0,0.12335818]
[1764296448545,0.04438,90862.0,90861.0,0.12335818]
[1764296449041,0.0553886,90862.0,90861.0,0.12335818]
[1764296449443,0.4253886,90862.0,90861.0,0.0442]
[1764296449845,0.4253886,90862.0,90861.0,0.06107443]
[1764296450852,0.4253886,90862.0,90861.0,0.03824443]
[1764296451351,0.4253886,90862.0,90861.0,0.06107443]
[1764296451651,0.8253886,90862.0,90861.0,0.01687443]
[1764296451944,0.04438,90861.0,90860.0,0.00016506]
[1764296452149,0.85438,90861.0,90860.0,0.00016506]
[1764296452350,0.85438,90861.0,90843.0,0.0442]
[1764296452351,0.04438,90844.0,90843.0,0.0442]
[1764296452546,0.0553908,90844.0,90843.0,0.0442]
[1764296453149,0.4353908,90844.0,90843.0,0.0442]
[1764296453554,0.4353908,90844.0,90843.0,0.0482]
[1764296454052,0.16438,90844.0,90843.0,0.0482]
[1764296454251,0.16438,90844.0,90843.0,0.06516563]
[1764296454451,0.16438,90844.0,90843.0,0.06616563]
[1764296455342,0.39438,90844.0,90843.0,0.06616563]
[1764296456151,0.39438,90844.0,90843.0,0.14532381]
[1764296456356,0.39438,90844.0,90843.0,0.06616563]
[1764296464057,0.39438,90844.0,90843.0,0.02196563]
[1764296464756,0.39438,90844.0,90843.0,0.02087033]
[1764296465167,0.39438,90844.0,90843.0,0.01887024]
[1764296467656,0.78438,90844.0,90843.0,0.01887024]
[1764296467853,0.78438,90844.0,90843.0,2.4e-07]
[1764296468861,0.0344719,90835.0,90834.0,0.06161276]
[1764296469062,0.4744719,90835.0,90834.0,0.06161276]
[1764296469957,0.2044719,90835.0,90834.0,0.07501276]
[1764296470359,0.4244719,90835.0,90834.0,0.07501276]
[1764296470861,0.0344719,90835.0,90834.0,0.07501276]
[1764296471166,0.0110117,90837.0,90836.0,0.04465]
[1764296471567,0.19754,90846.0,90845.0,0.04465]
[1764296471757,0.6485506,90846.0,90845.0,0.04465]
[1764296473463,0.4744706,90846.0,90845.0,0.04465]
[1764296473764,0.0110095,90855.0,90852.0,0.05805]
[1764296473970,0.02362506,90853.0,90852.0,0.05805]
[1764296474861,0.11637248,90870.0,90852.0,0.05805]
[1764296474862,0.0344674,90872.0,90871.0,0.04465]
[1764296475064,0.4744674,90872.0,90871.0,0.04465]
[1764296476073,0.4794674,90872.0,90871.0,0.04465]
[1764296477571,0.4784674,90872.0,90871.0,0.04465]
[1764296477765,0.05746,90872.0,90871.0,0.04465]
[1764296477968,0.05846,90872.0,90871.0,0.04465]
[1764296478164,0.32846,90872.0,90871.0,0.04465]
[1764296478671,0.32746,90872.0,90871.0,0.04465]
[1764296479466,0.02746,90872.0,90871.0,0.04465]
[1764296479773,0.01573,90872.0,90871.0,0.04465]
[1764296479973,0.02746,90872.0,90871.0,0.06026482]
[1764296482167,0.0384674,90872.0,90871.0,0.06026482]
[1764296483774,0.4184674,90872.0,90871.0,0.06026482]
[1764296484481,0.1584674,90872.0,90871.0,0.06026482]
[1764296484665,0.3684674,90872.0,90871.0,0.06026482]
[1764296485276,0.35746,90872.0,90871.0,0.06026482]
[1764296486469,0.02746,90872.0,90871.0,0.06026482]
[1764296486877,0.02746,90872.0,90871.0,0.07127232]
[1764296487266,0.02746,90872.0,90871.0,0.06026482]
[1764296487674,0.02746,90872.0,90871.0,0.03761482]
[1764296488476,0.02746,90872.0,90871.0,0.05888482]
[1764296489168,0.46746,90872.0,90871.0,0.01561482]
[1764296489368,0.46746,90872.0,90867.0,0.05752]
[1764296489369,0.02346,90868.0,90867.0,0.05752]
[1764296489567,0.02346,90868.0,90862.0,0.01117366]
[1764296489568,0.0344685,90863.0,90862.0,0.00016506]
[1764296489878,0.4144685,90863.0,90862.0,0.01614063]
[1764296490068,0.4144685,90863.0,90862.0,0.00016506]
[1764296490469,0.4144685,90863.0,90862.0,0.04428506]
[1764296490868,0.4164685,90863.0,90862.0,0.04428506]
[1764296491472,0.002,90863.0,90862.0,0.05529366]
[1764296492180,0.01373,90863.0,90862.0,0.05529366]
[1764296492772,0.01173,90863.0,90862.0,0.05529366]
[1764296492971,0.01473,90863.0,90862.0,0.05529366]
[1764296493471,0.01373,90863.0,90862.0,0.05529366]
[1764296494084,0.02546,90863.0,90862.0,0.04428506]
[1764296494484,0.02546,90863.0,90862.0,0.06011005]
[1764296495384,0.002,90863.0,90862.0,0.06011005]
[1764296496481,0.01373,90863.0,90862.0,0.06011005]
[1764296497382,0.02546,90863.0,90862.0,0.06011005]
[1764296498080,0.02546,90863.0,90862.0,0.01599005]
[1764296498289,0.46546,90863.0,90862.0,0.01599005]
[1764296499986,0.14546,90863.0,90862.0,0.05947005]
[1764296502875,0.42546,90863.0,90862.0,0.01599005]
[1764296503282,0.42546,90863.0,90862.0,0.03763005]
[1764296503481,0.42546,90863.0,90862.0,0.01599005]
[1764296503880,0.42546,90863.0,90862.0,0.05947005]
[1764296507799,0.42546,90863.0,90862.0,0.01599005]
[1764296509098,0.42546,90863.0,90862.0,0.05947005]
[1764296509494,0.002,90863.0,90862.0,0.05947005]
[1764296509700,0.01373,90863.0,90862.0,0.05947005]
[1764296510102,0.002,90863.0,90862.0,0.05947005]
[1764296511598,0.0227373,90873.0,90872.0,0.04348]
[1764296511804,0.4244673,90873.0,90872.0,0.04348]
[1764296512688,0.4294673,90873.0,90872.0,0.04348]
[1764296513705,0.4304673,90873.0,90872.0,0.04348]
[1764296518817,0.4304673,90873.0,90872.0,0.05929225]
[1764296520312,0.41946,90873.0,90872.0,0.05929225]
[1764296520914,0.41946,90873.0,90872.0,0.01581225]
[1764296520915,0.83946,90873.0,90872.0,0.01581225]
[1764296521216,0.02346,90863.0,90862.0,0.00016506]
[1764296521417,0.1144685,90863.0,90862.0,0.04428506]
[1764296521608,0.4144685,90863.0,90862.0,0.04428506]
[1764296521802,0.0644685,90863.0,90862.0,0.04428506]
[1764296522206,0.01173,90863.0,90862.0,0.04428506]
[1764296522410,0.02346,90863.0,90862.0,0.04428506]
[1764296522914,0.47546,90863.0,90862.0,0.04428506]
[1764296523919,0.47546,90863.0,90862.0,0.0601735]
[1764296524219,0.02546,90863.0,90862.0,0.0601735]
[1764296524419,0.47546,90863.0,90862.0,0.0601735]
[1764296526223,0.46373,90863.0,90862.0,0.0601735]
[1764296526609,0.47546,90863.0,90862.0,0.0601735]
[1764296529018,0.47546,90863.0,90852.0,0.09232522]
[1764296529019,0.02346,90853.0,90852.0,0.05913]
[1764296529210,0.4744697,90853.0,90852.0,0.05913]
[1764296529412,0.4744697,90853.0,90852.0,0.04573]
[1764296530015,0.4744697,90853.0,90852.0,0.05833]
[1764296530416,0.46346,90853.0,90852.0,0.05833]
[1764296531214,0.46346,90853.0,90852.0,0.05933]
[1764296532324,0.46346,90853.0,90852.0,0.05833]
[1764296532520,0.46546,90853.0,90852.0,0.05833]
[1764296533718,0.46546,90853.0,90852.0,0.01591727]
[1764296534021,0.0344708,90844.0,90843.0,0.02341506]
[1764296534217,0.4744708,90844.0,90843.0,0.02341506]
[1764296534413,0.1444708,90844.0,90843.0,0.04589506]
[1764296534613,0.3744708,90844.0,90843.0,0.04589506]
[1764296535219,0.341,90844.0,90843.0,0.04589506]
[1764296535526,0.421,90844.0,90843.0,0.04589506]
[1764296535712,0.422,90844.0,90843.0,0.04589506]
[1764296535921,0.43373,90844.0,90843.0,0.04589506]
[1764296536322,0.44546,90844.0,90843.0,0.05690596]
[1764296536525,0.44546,90844.0,90843.0,0.04589506]
[1764296536734,0.44546,90844.0,90843.0,0.05690596]
[1764296537234,0.44346,90844.0,90843.0,0.05690596]
[1764296537435,0.44646,90844.0,90843.0,0.05690596]
[1764296537732,0.44646,90844.0,90843.0,0.04589506]
[1764296537929,0.44546,90844.0,90843.0,0.06251731]
[1764296541718,0.44546,90844.0,90843.0,0.01678731]
[1764296542428,0.44546,90844.0,90843.0,0.03974731]
[1764296543629,0.44546,90844.0,90843.0,0.06165731]
[1764296546030,0.44546,90844.0,90843.0,0.03974731]
[1764296546532,0.44546,90844.0,90843.0,0.06165731]
[1764296550234,0.002,90844.0,90843.0,0.07266821]
[1764296550537,0.002,90844.0,90843.0,0.06165731]
[1764296552033,0.0344702,90850.0,90849.0,0.04343]
[1764296553626,0.0364702,90850.0,90849.0,0.04343]
[1764296556736,0.02546,90850.0,90849.0,0.04343]
[1764296560136,0.40546,90850.0,90849.0,0.04343]
[1764296561944,0.40546,90850.0,90849.0,0.02116]
[1764296562140,0.02346,90848.0,90847.0,0.12250013]
[1764296562331,0.44346,90848.0,90847.0,0.04343]
[1764296563134,0.44546,90848.0,90847.0,0.04343]
[1764296565726,0.44346,90848.0,90847.0,0.04343]
[1764296565935,0.44646,90848.0,90847.0,0.04343]
[1764296566343,0.44346,90848.0,90847.0,0.04343]
[1764296566544,0.44546,90848.0,90847.0,0.04343]
[1764296570532,0.002,90848.0,90847.0,0.04343]
[1764296570736,0.01373,90848.0,90847.0,0.04343]
[1764296571145,0.02546,90848.0,90847.0,0.04343]
[1764296571943,0.02546,90848.0,90843.0,0.01678731]
[1764296571944,0.02346,90844.0,90843.0,0.01678731]
[1764296572244,0.41346,90844.0,90843.0,0.01678731]
[1764296573032,0.84346,90844.0,90843.0,0.01678731]
[1764296573440,0.84846,90844.0,90843.0,0.01678731]
[1764296573633,0.84946,90844.0,90843.0,0.01678731]
[1764296573842,0.84446,90844.0,90843.0,0.01678731]
[1764296574039,0.84946,90844.0,90843.0,0.01678731]
[1764296577341,1.02342,90844.0,90843.0,0.01678731]
[1764296578352,0.73342,90844.0,90843.0,0.01678731]
[1764296579850,0.59342,90844.0,90843.0,0.01678731]
[1764296580649,0.01773,90844.0,90843.0,0.06021731]
[1764296580943,0.006,90844.0,90843.0,0.06021731]
[1764296581336,0.02946,90844.0,90843.0,0.06021731]
[1764296581550,0.006,90844.0,90843.0,0.06021731]
[1764296582049,0.17396,90848.0,90847.0,0.04431]
[1764296582448,0.17396,90848.0,90847.0,0.0553204]
[1764296583147,0.18569,90848.0,90847.0,0.0553204]
[1764296583350,0.18569,90848.0,90847.0,0.04431]
[1764296583646,0.18569,90848.0,90847.0,0.02124]
[1764296583647,0.19942,90848.0,90847.0,0.02124]
[1764296583836,0.0344708,90844.0,90843.0,0.03802731]
[1764296584037,0.0344708,90844.0,90843.0,0.06109731]
[1764296585745,0.0354708,90844.0,90843.0,0.06109731]
[1764296586139,0.001,90844.0,90843.0,0.07210821]
[1764296586337,0.0110094,90856.0,90855.0,0.04431]
[1764296586543,0.4727394,90856.0,90855.0,0.04431]
[1764296586743,0.4844694,90856.0,90855.0,0.04431]
[1764296588350,0.4884694,90856.0,90855.0,0.04431]
[1764296588944,0.4874694,90856.0,90855.0,0.04431]
[1764296589150,0.4884694,90856.0,90855.0,0.04431]
[1764296594149,0.4884694,90856.0,90855.0,0.06108709]
[1764296596959,0.4884694,90856.0,90855.0,0.01677709]
[1764296596960,0.8784694,90856.0,90855.0,0.01677709]
[1764296597154,0.0344708,90844.0,90843.0,0.02238506]
[1764296597355,0.3944708,90844.0,90843.0,0.00016506]
[1764296597662,0.3944708,90844.0,90843.0,0.02238506]
[1764296597861,0.3944708,90844.0,90843.0,0.04481506]
[1764296598066,0.3944708,90844.0,90843.0,0.0178544]
[1764296598358,0.3954708,90844.0,90843.0,0.0178544]
[1764296598747,0.3954708,90844.0,90843.0,0.0625044]
[1764296599364,0.3944708,90844.0,90843.0,0.0625044]
[1764296599565,0.38546,90844.0,90843.0,0.0625044]
[1764296599860,0.002,90844.0,90843.0,0.0625044]
[1764296600957,0.0344703,90848.0,90847.0,0.04465]
[1764296601158,0.0344703,90848.0,90847.0,0.0556604]
[1764296601159,0.4644703,90848.0,90847.0,0.0556604]
[1764296601457,0.4644703,90848.0,90847.0,0.04465]
[1764296602261,0.45546,90848.0,90847.0,0.04465]
[1764296604564,0.45546,90848.0,90847.0,0.02222]
[1764296604762,0.02346,90844.0,90843.0,0.0400744]
[1764296605060,0.44346,90844.0,90843.0,0.0625044]
[1764296605765,0.44446,90844.0,90843.0,0.0625044]
[1764296606862,0.44446,90844.0,90843.0,0.0400744]
[1764296607161,0.44346,90844.0,90843.0,0.0178544]
[1764296607370,0.44546,90844.0,90843.0,0.0400744]
[1764296607860,0.44646,90844.0,90843.0,0.0625044]
[1764296608365,0.44346,90844.0,90843.0,0.0625044]
[1764296608560,0.44646,90844.0,90843.0,0.0625044]
[1764296610160,0.44346,90844.0,90843.0,0.0625044]
[1764296610367,0.44646,90844.0,90843.0,0.0625044]
[1764296611257,0.44346,90844.0,90843.0,0.0625044]
[1764296611561,0.44646,90844.0,90843.0,0.0625044]
[1764296611952,0.44546,90844.0,90843.0,0.0625044]
[1764296620657,0.44546,90844.0,90843.0,0.0178544]
[1764296620861,0.88546,90844.0,90843.0,0.0178544]
[1764296625161,0.88546,90844.0,90843.0,0.0389844]
[1764296625368,0.44546,90844.0,90843.0,0.0617744]
[1764296625868,0.44546,90844.0,90843.0,0.0389844]
[1764296626262,0.44546,90844.0,90843.0,0.0178544]
[1764296627572,0.44546,90844.0,90843.0,0.0389844]
[1764296628474,0.44546,90844.0,90843.0,0.0617744]
[1764296628674,0.44546,90844.0,90843.0,0.0178544]
[1764296633777,0.44546,90844.0,90843.0,0.0389844]
[1764296635581,0.44546,90844.0,90843.0,0.0617744]
[1764296641391,0.002,90844.0,90843.0,0.0617744]
[1764296641999,0.17392,90856.0,90854.0,0.04437]
[1764296642000,0.0344695,90855.0,90854.0,0.04437]
[1764296642200,0.40346,90855.0,90854.0,0.04437]
[1764296642503,0.38,90855.0,90854.0,0.0553796]
[1764296642700,0.01189506,90862.0,90861.0,0.0553787]
[1764296642898,0.02346,90871.0,90870.0,0.05765]
[1764296643204,0.46346,90871.0,90870.0,0.05765]
[1764296643794,0.4744675,90871.0,90870.0,0.05765]
[1764296644091,0.4754675,90871.0,90870.0,0.05765]
[1764296644299,0.0344681,90866.0,90865.0,0.11470135]
[1764296644493,0.0344681,90866.0,90865.0,0.05765]
[1764296645699,0.0394681,90866.0,90865.0,0.05765]
[1764296645905,0.0404681,90866.0,90865.0,0.05765]
[1764296646705,0.4704681,90866.0,90865.0,0.05765]
[1764296647604,0.45946,90866.0,90865.0,0.0686583]
[1764296647997,0.01773,90866.0,90865.0,0.0686583]
[1764296648298,0.116,90866.0,90865.0,0.0686583]
[1764296648504,0.006,90866.0,90865.0,0.0686583]
[1764296650397,0.006,90866.0,90865.0,0.08642333]
[1764296653607,0.01189506,90880.0,90879.0,0.0553766]
[1764296653905,0.00016506,90880.0,90879.0,0.0553766]
[1764296654103,0.02362506,90880.0,90879.0,0.0553766]
[1764296654807,0.02562506,90880.0,90879.0,0.0553766]
[1764296655010,0.02562506,90880.0,90879.0,0.0573766]
[1764296655504,0.02562506,90880.0,90879.0,0.0563766]
[1764296655706,0.02362506,90880.0,90879.0,0.0563766]
[1764296656300,0.01189506,90880.0,90879.0,0.0563766]
[1764296656907,0.02362506,90880.0,90879.0,0.0553766]
[1764296657092,0.02362506,90880.0,90879.0,0.0583766]
[1764296657507,0.02362506,90880.0,90879.0,0.0553766]
[1764296657806,0.02362506,90880.0,90879.0,0.0583766]
[1764296659108,0.02362506,90880.0,90879.0,0.003]
[1764296659307,0.40362506,90880.0,90879.0,0.02404]
[1764296659499,0.40362506,90880.0,90879.0,0.04548]
[1764296660105,0.40362506,90880.0,90879.0,0.05957841]
[1764296660310,0.40362506,90880.0,90879.0,0.06257841]
[1764296660816,0.40362506,90880.0,90879.0,0.06057841]
[1764296667110,0.00016506,90880.0,90879.0,0.06057841]
[1764296667314,1e-08,90886.0,90885.0,0.0534858]
[1764296667513,0.00596,90904.0,90903.0,0.04248]
[1764296667514,0.0404235,90904.0,90903.0,0.04248]
[1764296667715,0.47318082,90904.0,90903.0,0.04248]
[1764296668011,0.44942,90904.0,90903.0,0.04248]
[1764296669107,0.45042,90904.0,90903.0,0.04248]
[1764296671318,0.47420727,90904.0,90903.0,0.04248]
[1764296671512,0.12042,90904.0,90903.0,0.04248]
[1764296672118,0.14435417,90904.0,90903.0,0.04248]
[1764296672316,0.12042,90904.0,90903.0,0.04248]
[1764296672712,0.40042,90904.0,90903.0,0.04248]
[1764296673316,0.40042,90904.0,90903.0,0.0534837]
[1764296673510,0.40042,90904.0,90903.0,0.06934284]
[1764296677914,0.06042,90904.0,90903.0,0.06934284]
[1764296678112,0.42869,90904.0,90903.0,0.06934284]
[1764296678515,0.44042,90904.0,90903.0,0.06934284]
[1764296679527,0.01869,90904.0,90903.0,0.06934284]
[1764296679713,0.42869,90904.0,90903.0,0.06934284]
[1764296679916,0.00016506,90913.0,90912.0,0.0110026]
[1764296680116,0.01189506,90913.0,90912.0,0.0684426]
[1764296680416,0.00016506,90913.0,90912.0,0.0684426]
[1764296680820,0.01189506,90913.0,90912.0,0.0684426]
[1764296681022,0.01289506,90913.0,90912.0,0.0684426]
[1764296681225,0.01289506,90913.0,90912.0,0.05744]
[1764296681226,0.03562746,90913.0,90912.0,0.05744]
[1764296681417,0.02462506,90913.0,90912.0,0.05744]
[1764296684419,0.41462506,90913.0,90912.0,0.05744]
[1764296694424,0.41462506,90913.0,90906.0,0.01344]
[1764296694425,0.0344632,90907.0,90906.0,0.044]
[1764296694620,0.4644632,90907.0,90906.0,0.044]
[1764296695631,0.4644632,90907.0,90906.0,0.0550033]
[1764296695826,0.4644632,90907.0,90906.0,0.044]
[1764296696025,0.4654632,90907.0,90906.0,0.044]
[1764296701337,0.02446,90907.0,90903.0,0.09500049]
[1764296701644,0.0344635,90904.0,90903.0,0.01585914]
[1764296701835,0.0344646,90895.0,90894.0,0.04435506]
[1764296702137,0.4244646,90895.0,90894.0,0.04435506]
[1764296702537,0.41346,90895.0,90894.0,0.04435506]
[1764296702733,0.01173,90895.0,90894.0,0.04435506]
[1764296702930,0.0344641,90899.0,90898.0,0.04419]
[1764296704943,0.0354641,90899.0,90898.0,0.04419]
[1764296705139,0.4754641,90899.0,90898.0,0.04419]
[1764296705326,0.4754641,90899.0,90898.0,0.02303]
[1764296705531,0.0344645,90896.0,90895.0,0.03565]
[1764296705732,0.4844645,90896.0,90895.0,0.03565]
[1764296706134,0.4844645,90896.0,90895.0,0.02303]
[1764296706334,0.4844645,90896.0,90895.0,0.04419]
[1764296706927,0.4844645,90896.0,90895.0,0.02303]
[1764296707141,0.02346,90895.0,90894.0,0.01608031]